{"text_format":"3","workbook":"xlsx","n_sheets":3,"sheets":["Planning","Gegevensinvoer","Naam opzoeken"],"not_rendered":{"defined_names":5},"read":"whole","date_system":"1900"}

{"sheet":"Planning","index":0,"n_rows":23,"n_cols":9,"rows_kept":23,"merged":[[1,1,2,3]]}
[]
[null,"DAGPLANNING",{"$nulls":4},"Voor de week van ","Planning weergeven voor: "]
[{"$nulls":5},{"$f":"WEEKDAY(WeekVan,1)","v":3},"2012-07-03","Maurits"]
[null,null,{"$f":"$F$3=COLUMN(A$1)","v":false},{"$f":"$F$3=COLUMN(B$1)","v":false},true,false,false,false,false]
[null,null,{"$f":"COLUMN(A$1)-MATCH(TRUE,$C$4:$I$4,0)+WeekVan+1","v":"2012-07-02"},"2012-07-03","2012-07-04","2012-07-05","2012-07-06","2012-07-07","2012-07-08"]
[null,"TIJD","MAANDAG","DINSDAG","WOENSDAG","DONDERDAG","VRIJDAG","ZATERDAG","ZONDAG"]
[null,"06:00:00",{"$f":"IFERROR(INDEX(tblGegevens[],MATCH(C$5+$B7&NaamWeergeven,tblGegevens[DATUM & TIJD]&tblGegevens[WIE],0),3),\"\")","v":""},{"$f":"IFERROR(INDEX(tblGegevens[],MATCH(D$5+$B7&NaamWeergeven,tblGegevens[DATUM & TIJD]&tblGegevens[WIE],0),3),\"\")","v":""},{"$f":"IFERROR(INDEX(tblGegevens[],MATCH(E$5+$B7&NaamWeergeven,tblGegevens[DATUM & TIJD]&tblGegevens[WIE],0),3),\"\")","v":""},{"$f":"IFERROR(INDEX(tblGegevens[],MATCH(F$5+$B7&NaamWeergeven,tblGegevens[DATUM & TIJD]&tblGegevens[WIE],0),3),\"\")","v":""},{"$f":"IFERROR(INDEX(tblGegevens[],MATCH(G$5+$B7&NaamWeergeven,tblGegevens[DATUM & TIJD]&tblGegevens[WIE],0),3),\"\")","v":""},{"$f":"IFERROR(INDEX(tblGegevens[],MATCH(H$5+$B7&NaamWeergeven,tblGegevens[DATUM & TIJD]&tblGegevens[WIE],0),3),\"\")","v":""},{"$f":"IFERROR(INDEX(tblGegevens[],MATCH(I$5+$B7&NaamWeergeven,tblGegevens[DATUM & TIJD]&tblGegevens[WIE],0),3),\"\")","v":""}]
[null,"07:00:00",{"$f":"IFERROR(INDEX(tblGegevens[],MATCH(C$5+$B8&NaamWeergeven,tblGegevens[DATUM & TIJD]&tblGegevens[WIE],0),3),\"\")","v":""},{"$f":"IFERROR(INDEX(tblGegevens[],MATCH(D$5+$B8&NaamWeergeven,tblGegevens[DATUM & TIJD]&tblGegevens[WIE],0),3),\"\")","v":""},{"$f":"IFERROR(INDEX(tblGegevens[],MATCH(E$5+$B8&NaamWeergeven,tblGegevens[DATUM & TIJD]&tblGegevens[WIE],0),3),\"\")","v":""},{"$f":"IFERROR(INDEX(tblGegevens[],MATCH(F$5+$B8&NaamWeergeven,tblGegevens[DATUM & TIJD]&tblGegevens[WIE],0),3),\"\")","v":""},{"$f":"IFERROR(INDEX(tblGegevens[],MATCH(G$5+$B8&NaamWeergeven,tblGegevens[DATUM & TIJD]&tblGegevens[WIE],0),3),\"\")","v":""},{"$f":"IFERROR(INDEX(tblGegevens[],MATCH(H$5+$B8&NaamWeergeven,tblGegevens[DATUM & TIJD]&tblGegevens[WIE],0),3),\"\")","v":""},{"$f":"IFERROR(INDEX(tblGegevens[],MATCH(I$5+$B8&NaamWeergeven,tblGegevens[DATUM & TIJD]&tblGegevens[WIE],0),3),\"\")","v":""}]
[null,"08:00:00",{"$f":"IFERROR(INDEX(tblGegevens[],MATCH(C$5+$B9&NaamWeergeven,tblGegevens[DATUM & TIJD]&tblGegevens[WIE],0),3),\"\")","v":""},{"$f":"IFERROR(INDEX(tblGegevens[],MATCH(D$5+$B9&NaamWeergeven,tblGegevens[DATUM & TIJD]&tblGegevens[WIE],0),3),\"\")","v":""},{"$f":"IFERROR(INDEX(tblGegevens[],MATCH(E$5+$B9&NaamWeergeven,tblGegevens[DATUM & TIJD]&tblGegevens[WIE],0),3),\"\")","v":""},{"$f":"IFERROR(INDEX(tblGegevens[],MATCH(F$5+$B9&NaamWeergeven,tblGegevens[DATUM & TIJD]&tblGegevens[WIE],0),3),\"\")","v":""},{"$f":"IFERROR(INDEX(tblGegevens[],MATCH(G$5+$B9&NaamWeergeven,tblGegevens[DATUM & TIJD]&tblGegevens[WIE],0),3),\"\")","v":""},{"$f":"IFERROR(INDEX(tblGegevens[],MATCH(H$5+$B9&NaamWeergeven,tblGegevens[DATUM & TIJD]&tblGegevens[WIE],0),3),\"\")","v":""},{"$f":"IFERROR(INDEX(tblGegevens[],MATCH(I$5+$B9&NaamWeergeven,tblGegevens[DATUM & TIJD]&tblGegevens[WIE],0),3),\"\")","v":""}]
[null,"09:00:00",{"$f":"IFERROR(INDEX(tblGegevens[],MATCH(C$5+$B10&NaamWeergeven,tblGegevens[DATUM & TIJD]&tblGegevens[WIE],0),3),\"\")","v":""},{"$f":"IFERROR(INDEX(tblGegevens[],MATCH(D$5+$B10&NaamWeergeven,tblGegevens[DATUM & TIJD]&tblGegevens[WIE],0),3),\"\")","v":""},{"$f":"IFERROR(INDEX(tblGegevens[],MATCH(E$5+$B10&NaamWeergeven,tblGegevens[DATUM & TIJD]&tblGegevens[WIE],0),3),\"\")","v":""},{"$f":"IFERROR(INDEX(tblGegevens[],MATCH(F$5+$B10&NaamWeergeven,tblGegevens[DATUM & TIJD]&tblGegevens[WIE],0),3),\"\")","v":""},{"$f":"IFERROR(INDEX(tblGegevens[],MATCH(G$5+$B10&NaamWeergeven,tblGegevens[DATUM & TIJD]&tblGegevens[WIE],0),3),\"\")","v":""},{"$f":"IFERROR(INDEX(tblGegevens[],MATCH(H$5+$B10&NaamWeergeven,tblGegevens[DATUM & TIJD]&tblGegevens[WIE],0),3),\"\")","v":""},{"$f":"IFERROR(INDEX(tblGegevens[],MATCH(I$5+$B10&NaamWeergeven,tblGegevens[DATUM & TIJD]&tblGegevens[WIE],0),3),\"\")","v":""}]
[null,"10:00:00",{"$f":"IFERROR(INDEX(tblGegevens[],MATCH(C$5+$B11&NaamWeergeven,tblGegevens[DATUM & TIJD]&tblGegevens[WIE],0),3),\"\")","v":""},{"$f":"IFERROR(INDEX(tblGegevens[],MATCH(D$5+$B11&NaamWeergeven,tblGegevens[DATUM & TIJD]&tblGegevens[WIE],0),3),\"\")","v":""},{"$f":"IFERROR(INDEX(tblGegevens[],MATCH(E$5+$B11&NaamWeergeven,tblGegevens[DATUM & TIJD]&tblGegevens[WIE],0),3),\"\")","v":"Optocht in de stad"},{"$f":"IFERROR(INDEX(tblGegevens[],MATCH(F$5+$B11&NaamWeergeven,tblGegevens[DATUM & TIJD]&tblGegevens[WIE],0),3),\"\")","v":""},{"$f":"IFERROR(INDEX(tblGegevens[],MATCH(G$5+$B11&NaamWeergeven,tblGegevens[DATUM & TIJD]&tblGegevens[WIE],0),3),\"\")","v":""},{"$f":"IFERROR(INDEX(tblGegevens[],MATCH(H$5+$B11&NaamWeergeven,tblGegevens[DATUM & TIJD]&tblGegevens[WIE],0),3),\"\")","v":""},{"$f":"IFERROR(INDEX(tblGegevens[],MATCH(I$5+$B11&NaamWeergeven,tblGegevens[DATUM & TIJD]&tblGegevens[WIE],0),3),\"\")","v":""}]
[null,"11:00:00",{"$f":"IFERROR(INDEX(tblGegevens[],MATCH(C$5+$B12&NaamWeergeven,tblGegevens[DATUM & TIJD]&tblGegevens[WIE],0),3),\"\")","v":""},{"$f":"IFERROR(INDEX(tblGegevens[],MATCH(D$5+$B12&NaamWeergeven,tblGegevens[DATUM & TIJD]&tblGegevens[WIE],0),3),\"\")","v":""},{"$f":"IFERROR(INDEX(tblGegevens[],MATCH(E$5+$B12&NaamWeergeven,tblGegevens[DATUM & TIJD]&tblGegevens[WIE],0),3),\"\")","v":""},{"$f":"IFERROR(INDEX(tblGegevens[],MATCH(F$5+$B12&NaamWeergeven,tblGegevens[DATUM & TIJD]&tblGegevens[WIE],0),3),\"\")","v":""},{"$f":"IFERROR(INDEX(tblGegevens[],MATCH(G$5+$B12&NaamWeergeven,tblGegevens[DATUM & TIJD]&tblGegevens[WIE],0),3),\"\")","v":"Barbecue"},{"$f":"IFERROR(INDEX(tblGegevens[],MATCH(H$5+$B12&NaamWeergeven,tblGegevens[DATUM & TIJD]&tblGegevens[WIE],0),3),\"\")","v":""},{"$f":"IFERROR(INDEX(tblGegevens[],MATCH(I$5+$B12&NaamWeergeven,tblGegevens[DATUM & TIJD]&tblGegevens[WIE],0),3),\"\")","v":""}]
[null,"12:00:00",{"$f":"IFERROR(INDEX(tblGegevens[],MATCH(C$5+$B13&NaamWeergeven,tblGegevens[DATUM & TIJD]&tblGegevens[WIE],0),3),\"\")","v":""},{"$f":"IFERROR(INDEX(tblGegevens[],MATCH(D$5+$B13&NaamWeergeven,tblGegevens[DATUM & TIJD]&tblGegevens[WIE],0),3),\"\")","v":""},{"$f":"IFERROR(INDEX(tblGegevens[],MATCH(E$5+$B13&NaamWeergeven,tblGegevens[DATUM & TIJD]&tblGegevens[WIE],0),3),\"\")","v":""},{"$f":"IFERROR(INDEX(tblGegevens[],MATCH(F$5+$B13&NaamWeergeven,tblGegevens[DATUM & TIJD]&tblGegevens[WIE],0),3),\"\")","v":""},{"$f":"IFERROR(INDEX(tblGegevens[],MATCH(G$5+$B13&NaamWeergeven,tblGegevens[DATUM & TIJD]&tblGegevens[WIE],0),3),\"\")","v":""},{"$f":"IFERROR(INDEX(tblGegevens[],MATCH(H$5+$B13&NaamWeergeven,tblGegevens[DATUM & TIJD]&tblGegevens[WIE],0),3),\"\")","v":""},{"$f":"IFERROR(INDEX(tblGegevens[],MATCH(I$5+$B13&NaamWeergeven,tblGegevens[DATUM & TIJD]&tblGegevens[WIE],0),3),\"\")","v":""}]
[null,"13:00:00",{"$f":"IFERROR(INDEX(tblGegevens[],MATCH(C$5+$B14&NaamWeergeven,tblGegevens[DATUM & TIJD]&tblGegevens[WIE],0),3),\"\")","v":""},{"$f":"IFERROR(INDEX(tblGegevens[],MATCH(D$5+$B14&NaamWeergeven,tblGegevens[DATUM & TIJD]&tblGegevens[WIE],0),3),\"\")","v":""},{"$f":"IFERROR(INDEX(tblGegevens[],MATCH(E$5+$B14&NaamWeergeven,tblGegevens[DATUM & TIJD]&tblGegevens[WIE],0),3),\"\")","v":""},{"$f":"IFERROR(INDEX(tblGegevens[],MATCH(F$5+$B14&NaamWeergeven,tblGegevens[DATUM & TIJD]&tblGegevens[WIE],0),3),\"\")","v":""},{"$f":"IFERROR(INDEX(tblGegevens[],MATCH(G$5+$B14&NaamWeergeven,tblGegevens[DATUM & TIJD]&tblGegevens[WIE],0),3),\"\")","v":""},{"$f":"IFERROR(INDEX(tblGegevens[],MATCH(H$5+$B14&NaamWeergeven,tblGegevens[DATUM & TIJD]&tblGegevens[WIE],0),3),\"\")","v":""},{"$f":"IFERROR(INDEX(tblGegevens[],MATCH(I$5+$B14&NaamWeergeven,tblGegevens[DATUM & TIJD]&tblGegevens[WIE],0),3),\"\")","v":""}]
[null,"14:00:00",{"$f":"IFERROR(INDEX(tblGegevens[],MATCH(C$5+$B15&NaamWeergeven,tblGegevens[DATUM & TIJD]&tblGegevens[WIE],0),3),\"\")","v":""},{"$f":"IFERROR(INDEX(tblGegevens[],MATCH(D$5+$B15&NaamWeergeven,tblGegevens[DATUM & TIJD]&tblGegevens[WIE],0),3),\"\")","v":""},{"$f":"IFERROR(INDEX(tblGegevens[],MATCH(E$5+$B15&NaamWeergeven,tblGegevens[DATUM & TIJD]&tblGegevens[WIE],0),3),\"\")","v":""},{"$f":"IFERROR(INDEX(tblGegevens[],MATCH(F$5+$B15&NaamWeergeven,tblGegevens[DATUM & TIJD]&tblGegevens[WIE],0),3),\"\")","v":""},{"$f":"IFERROR(INDEX(tblGegevens[],MATCH(G$5+$B15&NaamWeergeven,tblGegevens[DATUM & TIJD]&tblGegevens[WIE],0),3),\"\")","v":""},{"$f":"IFERROR(INDEX(tblGegevens[],MATCH(H$5+$B15&NaamWeergeven,tblGegevens[DATUM & TIJD]&tblGegevens[WIE],0),3),\"\")","v":""},{"$f":"IFERROR(INDEX(tblGegevens[],MATCH(I$5+$B15&NaamWeergeven,tblGegevens[DATUM & TIJD]&tblGegevens[WIE],0),3),\"\")","v":""}]
[null,"15:00:00",{"$f":"IFERROR(INDEX(tblGegevens[],MATCH(C$5+$B16&NaamWeergeven,tblGegevens[DATUM & TIJD]&tblGegevens[WIE],0),3),\"\")","v":""},{"$f":"IFERROR(INDEX(tblGegevens[],MATCH(D$5+$B16&NaamWeergeven,tblGegevens[DATUM & TIJD]&tblGegevens[WIE],0),3),\"\")","v":""},{"$f":"IFERROR(INDEX(tblGegevens[],MATCH(E$5+$B16&NaamWeergeven,tblGegevens[DATUM & TIJD]&tblGegevens[WIE],0),3),\"\")","v":""},{"$f":"IFERROR(INDEX(tblGegevens[],MATCH(F$5+$B16&NaamWeergeven,tblGegevens[DATUM & TIJD]&tblGegevens[WIE],0),3),\"\")","v":""},{"$f":"IFERROR(INDEX(tblGegevens[],MATCH(G$5+$B16&NaamWeergeven,tblGegevens[DATUM & TIJD]&tblGegevens[WIE],0),3),\"\")","v":""},{"$f":"IFERROR(INDEX(tblGegevens[],MATCH(H$5+$B16&NaamWeergeven,tblGegevens[DATUM & TIJD]&tblGegevens[WIE],0),3),\"\")","v":""},{"$f":"IFERROR(INDEX(tblGegevens[],MATCH(I$5+$B16&NaamWeergeven,tblGegevens[DATUM & TIJD]&tblGegevens[WIE],0),3),\"\")","v":""}]
[null,"16:00:00",{"$f":"IFERROR(INDEX(tblGegevens[],MATCH(C$5+$B17&NaamWeergeven,tblGegevens[DATUM & TIJD]&tblGegevens[WIE],0),3),\"\")","v":""},{"$f":"IFERROR(INDEX(tblGegevens[],MATCH(D$5+$B17&NaamWeergeven,tblGegevens[DATUM & TIJD]&tblGegevens[WIE],0),3),\"\")","v":"Vertrek naar buitenhuis"},{"$f":"IFERROR(INDEX(tblGegevens[],MATCH(E$5+$B17&NaamWeergeven,tblGegevens[DATUM & TIJD]&tblGegevens[WIE],0),3),\"\")","v":""},{"$f":"IFERROR(INDEX(tblGegevens[],MATCH(F$5+$B17&NaamWeergeven,tblGegevens[DATUM & TIJD]&tblGegevens[WIE],0),3),\"\")","v":""},{"$f":"IFERROR(INDEX(tblGegevens[],MATCH(G$5+$B17&NaamWeergeven,tblGegevens[DATUM & TIJD]&tblGegevens[WIE],0),3),\"\")","v":""},{"$f":"IFERROR(INDEX(tblGegevens[],MATCH(H$5+$B17&NaamWeergeven,tblGegevens[DATUM & TIJD]&tblGegevens[WIE],0),3),\"\")","v":""},{"$f":"IFERROR(INDEX(tblGegevens[],MATCH(I$5+$B17&NaamWeergeven,tblGegevens[DATUM & TIJD]&tblGegevens[WIE],0),3),\"\")","v":""}]
[null,"17:00:00",{"$f":"IFERROR(INDEX(tblGegevens[],MATCH(C$5+$B18&NaamWeergeven,tblGegevens[DATUM & TIJD]&tblGegevens[WIE],0),3),\"\")","v":""},{"$f":"IFERROR(INDEX(tblGegevens[],MATCH(D$5+$B18&NaamWeergeven,tblGegevens[DATUM & TIJD]&tblGegevens[WIE],0),3),\"\")","v":""},{"$f":"IFERROR(INDEX(tblGegevens[],MATCH(E$5+$B18&NaamWeergeven,tblGegevens[DATUM & TIJD]&tblGegevens[WIE],0),3),\"\")","v":""},{"$f":"IFERROR(INDEX(tblGegevens[],MATCH(F$5+$B18&NaamWeergeven,tblGegevens[DATUM & TIJD]&tblGegevens[WIE],0),3),\"\")","v":""},{"$f":"IFERROR(INDEX(tblGegevens[],MATCH(G$5+$B18&NaamWeergeven,tblGegevens[DATUM & TIJD]&tblGegevens[WIE],0),3),\"\")","v":""},{"$f":"IFERROR(INDEX(tblGegevens[],MATCH(H$5+$B18&NaamWeergeven,tblGegevens[DATUM & TIJD]&tblGegevens[WIE],0),3),\"\")","v":""},{"$f":"IFERROR(INDEX(tblGegevens[],MATCH(I$5+$B18&NaamWeergeven,tblGegevens[DATUM & TIJD]&tblGegevens[WIE],0),3),\"\")","v":"Terug naar huis"}]
[null,"18:00:00",{"$f":"IFERROR(INDEX(tblGegevens[],MATCH(C$5+$B19&NaamWeergeven,tblGegevens[DATUM & TIJD]&tblGegevens[WIE],0),3),\"\")","v":"Medicijnen slikken"},{"$f":"IFERROR(INDEX(tblGegevens[],MATCH(D$5+$B19&NaamWeergeven,tblGegevens[DATUM & TIJD]&tblGegevens[WIE],0),3),\"\")","v":""},{"$f":"IFERROR(INDEX(tblGegevens[],MATCH(E$5+$B19&NaamWeergeven,tblGegevens[DATUM & TIJD]&tblGegevens[WIE],0),3),\"\")","v":""},{"$f":"IFERROR(INDEX(tblGegevens[],MATCH(F$5+$B19&NaamWeergeven,tblGegevens[DATUM & TIJD]&tblGegevens[WIE],0),3),\"\")","v":""},{"$f":"IFERROR(INDEX(tblGegevens[],MATCH(G$5+$B19&NaamWeergeven,tblGegevens[DATUM & TIJD]&tblGegevens[WIE],0),3),\"\")","v":""},{"$f":"IFERROR(INDEX(tblGegevens[],MATCH(H$5+$B19&NaamWeergeven,tblGegevens[DATUM & TIJD]&tblGegevens[WIE],0),3),\"\")","v":""},{"$f":"IFERROR(INDEX(tblGegevens[],MATCH(I$5+$B19&NaamWeergeven,tblGegevens[DATUM & TIJD]&tblGegevens[WIE],0),3),\"\")","v":""}]
[null,"19:00:00",{"$f":"IFERROR(INDEX(tblGegevens[],MATCH(C$5+$B20&NaamWeergeven,tblGegevens[DATUM & TIJD]&tblGegevens[WIE],0),3),\"\")","v":""},{"$f":"IFERROR(INDEX(tblGegevens[],MATCH(D$5+$B20&NaamWeergeven,tblGegevens[DATUM & TIJD]&tblGegevens[WIE],0),3),\"\")","v":""},{"$f":"IFERROR(INDEX(tblGegevens[],MATCH(E$5+$B20&NaamWeergeven,tblGegevens[DATUM & TIJD]&tblGegevens[WIE],0),3),\"\")","v":""},{"$f":"IFERROR(INDEX(tblGegevens[],MATCH(F$5+$B20&NaamWeergeven,tblGegevens[DATUM & TIJD]&tblGegevens[WIE],0),3),\"\")","v":""},{"$f":"IFERROR(INDEX(tblGegevens[],MATCH(G$5+$B20&NaamWeergeven,tblGegevens[DATUM & TIJD]&tblGegevens[WIE],0),3),\"\")","v":""},{"$f":"IFERROR(INDEX(tblGegevens[],MATCH(H$5+$B20&NaamWeergeven,tblGegevens[DATUM & TIJD]&tblGegevens[WIE],0),3),\"\")","v":""},{"$f":"IFERROR(INDEX(tblGegevens[],MATCH(I$5+$B20&NaamWeergeven,tblGegevens[DATUM & TIJD]&tblGegevens[WIE],0),3),\"\")","v":""}]
[null,"20:00:00",{"$f":"IFERROR(INDEX(tblGegevens[],MATCH(C$5+$B21&NaamWeergeven,tblGegevens[DATUM & TIJD]&tblGegevens[WIE],0),3),\"\")","v":"Film met het hele gezin"},{"$f":"IFERROR(INDEX(tblGegevens[],MATCH(D$5+$B21&NaamWeergeven,tblGegevens[DATUM & TIJD]&tblGegevens[WIE],0),3),\"\")","v":""},{"$f":"IFERROR(INDEX(tblGegevens[],MATCH(E$5+$B21&NaamWeergeven,tblGegevens[DATUM & TIJD]&tblGegevens[WIE],0),3),\"\")","v":""},{"$f":"IFERROR(INDEX(tblGegevens[],MATCH(F$5+$B21&NaamWeergeven,tblGegevens[DATUM & TIJD]&tblGegevens[WIE],0),3),\"\")","v":"Vuurwerkshow"},{"$f":"IFERROR(INDEX(tblGegevens[],MATCH(G$5+$B21&NaamWeergeven,tblGegevens[DATUM & TIJD]&tblGegevens[WIE],0),3),\"\")","v":""},{"$f":"IFERROR(INDEX(tblGegevens[],MATCH(H$5+$B21&NaamWeergeven,tblGegevens[DATUM & TIJD]&tblGegevens[WIE],0),3),\"\")","v":""},{"$f":"IFERROR(INDEX(tblGegevens[],MATCH(I$5+$B21&NaamWeergeven,tblGegevens[DATUM & TIJD]&tblGegevens[WIE],0),3),\"\")","v":""}]
[null,"21:00:00",{"$f":"IFERROR(INDEX(tblGegevens[],MATCH(C$5+$B22&NaamWeergeven,tblGegevens[DATUM & TIJD]&tblGegevens[WIE],0),3),\"\")","v":""},{"$f":"IFERROR(INDEX(tblGegevens[],MATCH(D$5+$B22&NaamWeergeven,tblGegevens[DATUM & TIJD]&tblGegevens[WIE],0),3),\"\")","v":""},{"$f":"IFERROR(INDEX(tblGegevens[],MATCH(E$5+$B22&NaamWeergeven,tblGegevens[DATUM & TIJD]&tblGegevens[WIE],0),3),\"\")","v":""},{"$f":"IFERROR(INDEX(tblGegevens[],MATCH(F$5+$B22&NaamWeergeven,tblGegevens[DATUM & TIJD]&tblGegevens[WIE],0),3),\"\")","v":""},{"$f":"IFERROR(INDEX(tblGegevens[],MATCH(G$5+$B22&NaamWeergeven,tblGegevens[DATUM & TIJD]&tblGegevens[WIE],0),3),\"\")","v":""},{"$f":"IFERROR(INDEX(tblGegevens[],MATCH(H$5+$B22&NaamWeergeven,tblGegevens[DATUM & TIJD]&tblGegevens[WIE],0),3),\"\")","v":""},{"$f":"IFERROR(INDEX(tblGegevens[],MATCH(I$5+$B22&NaamWeergeven,tblGegevens[DATUM & TIJD]&tblGegevens[WIE],0),3),\"\")","v":""}]
[null,"22:00:00",{"$f":"IFERROR(INDEX(tblGegevens[],MATCH(C$5+$B23&NaamWeergeven,tblGegevens[DATUM & TIJD]&tblGegevens[WIE],0),3),\"\")","v":""},{"$f":"IFERROR(INDEX(tblGegevens[],MATCH(D$5+$B23&NaamWeergeven,tblGegevens[DATUM & TIJD]&tblGegevens[WIE],0),3),\"\")","v":""},{"$f":"IFERROR(INDEX(tblGegevens[],MATCH(E$5+$B23&NaamWeergeven,tblGegevens[DATUM & TIJD]&tblGegevens[WIE],0),3),\"\")","v":""},{"$f":"IFERROR(INDEX(tblGegevens[],MATCH(F$5+$B23&NaamWeergeven,tblGegevens[DATUM & TIJD]&tblGegevens[WIE],0),3),\"\")","v":""},{"$f":"IFERROR(INDEX(tblGegevens[],MATCH(G$5+$B23&NaamWeergeven,tblGegevens[DATUM & TIJD]&tblGegevens[WIE],0),3),\"\")","v":""},{"$f":"IFERROR(INDEX(tblGegevens[],MATCH(H$5+$B23&NaamWeergeven,tblGegevens[DATUM & TIJD]&tblGegevens[WIE],0),3),\"\")","v":""},{"$f":"IFERROR(INDEX(tblGegevens[],MATCH(I$5+$B23&NaamWeergeven,tblGegevens[DATUM & TIJD]&tblGegevens[WIE],0),3),\"\")","v":""}]

{"sheet":"Gegevensinvoer","index":1,"n_rows":14,"n_cols":4,"rows_kept":14}
[null,"GEGEVENSINVOER"]
[]
[null,"DATUM & TIJD","WIE","TAAK"]
[null,"2012-07-02T08:00:00","Anne","Afspraak met huisarts"]
[null,"2012-07-02T18:00:00","Maurits","Medicijnen slikken"]
[null,"2012-07-02T18:30:00","Maurits","Uit eten met Petra"]
[null,"2012-07-02T20:00:00","Maurits","Film met het hele gezin"]
[null,"2012-07-03T16:00:00","Maurits","Vertrek naar buitenhuis"]
[null,"2012-07-04T10:00:00","Maurits","Optocht in de stad"]
[null,"2012-07-05T20:00:00","Maurits","Vuurwerkshow"]
[null,"2012-07-06T11:00:00","Maurits","Barbecue"]
[null,"2012-07-07","Maurits","Buurtfeest"]
[null,"2012-07-08T17:00:00","Maurits","Terug naar huis"]
[null,"2012-07-02T10:00:00","Anne","Pianolessen"]

{"sheet":"Naam opzoeken","index":2,"n_rows":132,"n_cols":2,"rows_kept":132,"hidden":true,"merged":[[0,0,0,1]]}
["Via dit blad wordt de vervolgkeuzelijst met namen op het blad Planning in cel H3 ingevuld. Als u wijzigingen in dit blad aanbrengt, treedt mogelijk een fout op."]
["UNIEKE NAAM","RIJNUMMER"]
[{"$f":"IFERROR(INDEX(WieVeld,MATCH(0,COUNTIF($A$2:A2,WieVeld),0)),\"\")","v":"Anne"},{"$f":"IF(A3=\"\",\"\",ROW())","v":3}]
[{"$f":"IFERROR(INDEX(WieVeld,MATCH(0,COUNTIF($A$2:A3,WieVeld),0)),\"\")","v":"Maurits"},{"$f":"IF(A4=\"\",\"\",ROW())","v":4}]
[{"$f":"IFERROR(INDEX(WieVeld,MATCH(0,COUNTIF($A$2:A4,WieVeld),0)),\"\")","v":""},""]
[{"$f":"IFERROR(INDEX(WieVeld,MATCH(0,COUNTIF($A$2:A5,WieVeld),0)),\"\")","v":""},""]
[{"$f":"IFERROR(INDEX(WieVeld,MATCH(0,COUNTIF($A$2:A6,WieVeld),0)),\"\")","v":""},""]
[{"$f":"IFERROR(INDEX(WieVeld,MATCH(0,COUNTIF($A$2:A7,WieVeld),0)),\"\")","v":""},""]
[{"$f":"IFERROR(INDEX(WieVeld,MATCH(0,COUNTIF($A$2:A8,WieVeld),0)),\"\")","v":""},""]
[{"$f":"IFERROR(INDEX(WieVeld,MATCH(0,COUNTIF($A$2:A9,WieVeld),0)),\"\")","v":""},""]
[{"$f":"IFERROR(INDEX(WieVeld,MATCH(0,COUNTIF($A$2:A10,WieVeld),0)),\"\")","v":""},""]
[{"$f":"IFERROR(INDEX(WieVeld,MATCH(0,COUNTIF($A$2:A11,WieVeld),0)),\"\")","v":""},""]
[{"$f":"IFERROR(INDEX(WieVeld,MATCH(0,COUNTIF($A$2:A12,WieVeld),0)),\"\")","v":""},""]
[{"$f":"IFERROR(INDEX(WieVeld,MATCH(0,COUNTIF($A$2:A13,WieVeld),0)),\"\")","v":""},""]
[{"$f":"IFERROR(INDEX(WieVeld,MATCH(0,COUNTIF($A$2:A14,WieVeld),0)),\"\")","v":""},""]
[{"$f":"IFERROR(INDEX(WieVeld,MATCH(0,COUNTIF($A$2:A15,WieVeld),0)),\"\")","v":""},""]
[{"$f":"IFERROR(INDEX(WieVeld,MATCH(0,COUNTIF($A$2:A16,WieVeld),0)),\"\")","v":""},""]
[{"$f":"IFERROR(INDEX(WieVeld,MATCH(0,COUNTIF($A$2:A17,WieVeld),0)),\"\")","v":""},""]
[{"$f":"IFERROR(INDEX(WieVeld,MATCH(0,COUNTIF($A$2:A18,WieVeld),0)),\"\")","v":""},""]
[{"$f":"IFERROR(INDEX(WieVeld,MATCH(0,COUNTIF($A$2:A19,WieVeld),0)),\"\")","v":""},""]
[{"$f":"IFERROR(INDEX(WieVeld,MATCH(0,COUNTIF($A$2:A20,WieVeld),0)),\"\")","v":""},""]
[{"$f":"IFERROR(INDEX(WieVeld,MATCH(0,COUNTIF($A$2:A21,WieVeld),0)),\"\")","v":""},""]
[{"$f":"IFERROR(INDEX(WieVeld,MATCH(0,COUNTIF($A$2:A22,WieVeld),0)),\"\")","v":""},""]
[{"$f":"IFERROR(INDEX(WieVeld,MATCH(0,COUNTIF($A$2:A23,WieVeld),0)),\"\")","v":""},""]
[{"$f":"IFERROR(INDEX(WieVeld,MATCH(0,COUNTIF($A$2:A24,WieVeld),0)),\"\")","v":""},""]
[{"$f":"IFERROR(INDEX(WieVeld,MATCH(0,COUNTIF($A$2:A25,WieVeld),0)),\"\")","v":""},""]
[{"$f":"IFERROR(INDEX(WieVeld,MATCH(0,COUNTIF($A$2:A26,WieVeld),0)),\"\")","v":""},""]
[{"$f":"IFERROR(INDEX(WieVeld,MATCH(0,COUNTIF($A$2:A27,WieVeld),0)),\"\")","v":""},""]
[{"$f":"IFERROR(INDEX(WieVeld,MATCH(0,COUNTIF($A$2:A28,WieVeld),0)),\"\")","v":""},""]
[{"$f":"IFERROR(INDEX(WieVeld,MATCH(0,COUNTIF($A$2:A29,WieVeld),0)),\"\")","v":""},""]
[{"$f":"IFERROR(INDEX(WieVeld,MATCH(0,COUNTIF($A$2:A30,WieVeld),0)),\"\")","v":""},""]
[{"$f":"IFERROR(INDEX(WieVeld,MATCH(0,COUNTIF($A$2:A31,WieVeld),0)),\"\")","v":""},""]
[{"$f":"IFERROR(INDEX(WieVeld,MATCH(0,COUNTIF($A$2:A32,WieVeld),0)),\"\")","v":""},""]
[{"$f":"IFERROR(INDEX(WieVeld,MATCH(0,COUNTIF($A$2:A33,WieVeld),0)),\"\")","v":""},""]
[{"$f":"IFERROR(INDEX(WieVeld,MATCH(0,COUNTIF($A$2:A34,WieVeld),0)),\"\")","v":""},""]
[{"$f":"IFERROR(INDEX(WieVeld,MATCH(0,COUNTIF($A$2:A35,WieVeld),0)),\"\")","v":""},""]
[{"$f":"IFERROR(INDEX(WieVeld,MATCH(0,COUNTIF($A$2:A36,WieVeld),0)),\"\")","v":""},""]
[{"$f":"IFERROR(INDEX(WieVeld,MATCH(0,COUNTIF($A$2:A37,WieVeld),0)),\"\")","v":""},""]
[{"$f":"IFERROR(INDEX(WieVeld,MATCH(0,COUNTIF($A$2:A38,WieVeld),0)),\"\")","v":""},""]
[{"$f":"IFERROR(INDEX(WieVeld,MATCH(0,COUNTIF($A$2:A39,WieVeld),0)),\"\")","v":""},""]
[{"$f":"IFERROR(INDEX(WieVeld,MATCH(0,COUNTIF($A$2:A40,WieVeld),0)),\"\")","v":""},""]
[{"$f":"IFERROR(INDEX(WieVeld,MATCH(0,COUNTIF($A$2:A41,WieVeld),0)),\"\")","v":""},""]
[{"$f":"IFERROR(INDEX(WieVeld,MATCH(0,COUNTIF($A$2:A42,WieVeld),0)),\"\")","v":""},""]
[{"$f":"IFERROR(INDEX(WieVeld,MATCH(0,COUNTIF($A$2:A43,WieVeld),0)),\"\")","v":""},""]
[{"$f":"IFERROR(INDEX(WieVeld,MATCH(0,COUNTIF($A$2:A44,WieVeld),0)),\"\")","v":""},""]
[{"$f":"IFERROR(INDEX(WieVeld,MATCH(0,COUNTIF($A$2:A45,WieVeld),0)),\"\")","v":""},""]
[{"$f":"IFERROR(INDEX(WieVeld,MATCH(0,COUNTIF($A$2:A46,WieVeld),0)),\"\")","v":""},""]
[{"$f":"IFERROR(INDEX(WieVeld,MATCH(0,COUNTIF($A$2:A47,WieVeld),0)),\"\")","v":""},""]
[{"$f":"IFERROR(INDEX(WieVeld,MATCH(0,COUNTIF($A$2:A48,WieVeld),0)),\"\")","v":""},""]
[{"$f":"IFERROR(INDEX(WieVeld,MATCH(0,COUNTIF($A$2:A49,WieVeld),0)),\"\")","v":""},""]
[{"$f":"IFERROR(INDEX(WieVeld,MATCH(0,COUNTIF($A$2:A50,WieVeld),0)),\"\")","v":""},""]
[{"$f":"IFERROR(INDEX(WieVeld,MATCH(0,COUNTIF($A$2:A51,WieVeld),0)),\"\")","v":""},""]
[{"$f":"IFERROR(INDEX(WieVeld,MATCH(0,COUNTIF($A$2:A52,WieVeld),0)),\"\")","v":""},""]
[{"$f":"IFERROR(INDEX(WieVeld,MATCH(0,COUNTIF($A$2:A53,WieVeld),0)),\"\")","v":""},""]
[{"$f":"IFERROR(INDEX(WieVeld,MATCH(0,COUNTIF($A$2:A54,WieVeld),0)),\"\")","v":""},""]
[{"$f":"IFERROR(INDEX(WieVeld,MATCH(0,COUNTIF($A$2:A55,WieVeld),0)),\"\")","v":""},""]
[{"$f":"IFERROR(INDEX(WieVeld,MATCH(0,COUNTIF($A$2:A56,WieVeld),0)),\"\")","v":""},""]
[{"$f":"IFERROR(INDEX(WieVeld,MATCH(0,COUNTIF($A$2:A57,WieVeld),0)),\"\")","v":""},""]
[{"$f":"IFERROR(INDEX(WieVeld,MATCH(0,COUNTIF($A$2:A58,WieVeld),0)),\"\")","v":""},""]
[{"$f":"IFERROR(INDEX(WieVeld,MATCH(0,COUNTIF($A$2:A59,WieVeld),0)),\"\")","v":""},""]
[{"$f":"IFERROR(INDEX(WieVeld,MATCH(0,COUNTIF($A$2:A60,WieVeld),0)),\"\")","v":""},""]
[{"$f":"IFERROR(INDEX(WieVeld,MATCH(0,COUNTIF($A$2:A61,WieVeld),0)),\"\")","v":""},""]
[{"$f":"IFERROR(INDEX(WieVeld,MATCH(0,COUNTIF($A$2:A62,WieVeld),0)),\"\")","v":""},""]
[{"$f":"IFERROR(INDEX(WieVeld,MATCH(0,COUNTIF($A$2:A63,WieVeld),0)),\"\")","v":""},""]
[{"$f":"IFERROR(INDEX(WieVeld,MATCH(0,COUNTIF($A$2:A64,WieVeld),0)),\"\")","v":""},""]
[{"$f":"IFERROR(INDEX(WieVeld,MATCH(0,COUNTIF($A$2:A65,WieVeld),0)),\"\")","v":""},""]
[{"$f":"IFERROR(INDEX(WieVeld,MATCH(0,COUNTIF($A$2:A66,WieVeld),0)),\"\")","v":""},""]
[{"$f":"IFERROR(INDEX(WieVeld,MATCH(0,COUNTIF($A$2:A67,WieVeld),0)),\"\")","v":""},{"$f":"IF(A68=\"\",\"\",ROW())","v":""}]
[{"$f":"IFERROR(INDEX(WieVeld,MATCH(0,COUNTIF($A$2:A68,WieVeld),0)),\"\")","v":""},""]
[{"$f":"IFERROR(INDEX(WieVeld,MATCH(0,COUNTIF($A$2:A69,WieVeld),0)),\"\")","v":""},""]
[{"$f":"IFERROR(INDEX(WieVeld,MATCH(0,COUNTIF($A$2:A70,WieVeld),0)),\"\")","v":""},""]
[{"$f":"IFERROR(INDEX(WieVeld,MATCH(0,COUNTIF($A$2:A71,WieVeld),0)),\"\")","v":""},""]
[{"$f":"IFERROR(INDEX(WieVeld,MATCH(0,COUNTIF($A$2:A72,WieVeld),0)),\"\")","v":""},""]
[{"$f":"IFERROR(INDEX(WieVeld,MATCH(0,COUNTIF($A$2:A73,WieVeld),0)),\"\")","v":""},""]
[{"$f":"IFERROR(INDEX(WieVeld,MATCH(0,COUNTIF($A$2:A74,WieVeld),0)),\"\")","v":""},""]
[{"$f":"IFERROR(INDEX(WieVeld,MATCH(0,COUNTIF($A$2:A75,WieVeld),0)),\"\")","v":""},""]
[{"$f":"IFERROR(INDEX(WieVeld,MATCH(0,COUNTIF($A$2:A76,WieVeld),0)),\"\")","v":""},""]
[{"$f":"IFERROR(INDEX(WieVeld,MATCH(0,COUNTIF($A$2:A77,WieVeld),0)),\"\")","v":""},""]
[{"$f":"IFERROR(INDEX(WieVeld,MATCH(0,COUNTIF($A$2:A78,WieVeld),0)),\"\")","v":""},""]
[{"$f":"IFERROR(INDEX(WieVeld,MATCH(0,COUNTIF($A$2:A79,WieVeld),0)),\"\")","v":""},""]
[{"$f":"IFERROR(INDEX(WieVeld,MATCH(0,COUNTIF($A$2:A80,WieVeld),0)),\"\")","v":""},""]
[{"$f":"IFERROR(INDEX(WieVeld,MATCH(0,COUNTIF($A$2:A81,WieVeld),0)),\"\")","v":""},""]
[{"$f":"IFERROR(INDEX(WieVeld,MATCH(0,COUNTIF($A$2:A82,WieVeld),0)),\"\")","v":""},""]
[{"$f":"IFERROR(INDEX(WieVeld,MATCH(0,COUNTIF($A$2:A83,WieVeld),0)),\"\")","v":""},""]
[{"$f":"IFERROR(INDEX(WieVeld,MATCH(0,COUNTIF($A$2:A84,WieVeld),0)),\"\")","v":""},""]
[{"$f":"IFERROR(INDEX(WieVeld,MATCH(0,COUNTIF($A$2:A85,WieVeld),0)),\"\")","v":""},""]
[{"$f":"IFERROR(INDEX(WieVeld,MATCH(0,COUNTIF($A$2:A86,WieVeld),0)),\"\")","v":""},""]
[{"$f":"IFERROR(INDEX(WieVeld,MATCH(0,COUNTIF($A$2:A87,WieVeld),0)),\"\")","v":""},""]
[{"$f":"IFERROR(INDEX(WieVeld,MATCH(0,COUNTIF($A$2:A88,WieVeld),0)),\"\")","v":""},""]
[{"$f":"IFERROR(INDEX(WieVeld,MATCH(0,COUNTIF($A$2:A89,WieVeld),0)),\"\")","v":""},""]
[{"$f":"IFERROR(INDEX(WieVeld,MATCH(0,COUNTIF($A$2:A90,WieVeld),0)),\"\")","v":""},""]
[{"$f":"IFERROR(INDEX(WieVeld,MATCH(0,COUNTIF($A$2:A91,WieVeld),0)),\"\")","v":""},""]
[{"$f":"IFERROR(INDEX(WieVeld,MATCH(0,COUNTIF($A$2:A92,WieVeld),0)),\"\")","v":""},""]
[{"$f":"IFERROR(INDEX(WieVeld,MATCH(0,COUNTIF($A$2:A93,WieVeld),0)),\"\")","v":""},""]
[{"$f":"IFERROR(INDEX(WieVeld,MATCH(0,COUNTIF($A$2:A94,WieVeld),0)),\"\")","v":""},""]
[{"$f":"IFERROR(INDEX(WieVeld,MATCH(0,COUNTIF($A$2:A95,WieVeld),0)),\"\")","v":""},""]
[{"$f":"IFERROR(INDEX(WieVeld,MATCH(0,COUNTIF($A$2:A96,WieVeld),0)),\"\")","v":""},""]
[{"$f":"IFERROR(INDEX(WieVeld,MATCH(0,COUNTIF($A$2:A97,WieVeld),0)),\"\")","v":""},""]
[{"$f":"IFERROR(INDEX(WieVeld,MATCH(0,COUNTIF($A$2:A98,WieVeld),0)),\"\")","v":""},""]
[{"$f":"IFERROR(INDEX(WieVeld,MATCH(0,COUNTIF($A$2:A99,WieVeld),0)),\"\")","v":""},""]
[{"$f":"IFERROR(INDEX(WieVeld,MATCH(0,COUNTIF($A$2:A100,WieVeld),0)),\"\")","v":""},""]
[{"$f":"IFERROR(INDEX(WieVeld,MATCH(0,COUNTIF($A$2:A101,WieVeld),0)),\"\")","v":""},""]
[{"$f":"IFERROR(INDEX(WieVeld,MATCH(0,COUNTIF($A$2:A102,WieVeld),0)),\"\")","v":""},""]
[{"$f":"IFERROR(INDEX(WieVeld,MATCH(0,COUNTIF($A$2:A103,WieVeld),0)),\"\")","v":""},""]
[{"$f":"IFERROR(INDEX(WieVeld,MATCH(0,COUNTIF($A$2:A104,WieVeld),0)),\"\")","v":""},""]
[{"$f":"IFERROR(INDEX(WieVeld,MATCH(0,COUNTIF($A$2:A105,WieVeld),0)),\"\")","v":""},""]
[{"$f":"IFERROR(INDEX(WieVeld,MATCH(0,COUNTIF($A$2:A106,WieVeld),0)),\"\")","v":""},""]
[{"$f":"IFERROR(INDEX(WieVeld,MATCH(0,COUNTIF($A$2:A107,WieVeld),0)),\"\")","v":""},""]
[{"$f":"IFERROR(INDEX(WieVeld,MATCH(0,COUNTIF($A$2:A108,WieVeld),0)),\"\")","v":""},""]
[{"$f":"IFERROR(INDEX(WieVeld,MATCH(0,COUNTIF($A$2:A109,WieVeld),0)),\"\")","v":""},""]
[{"$f":"IFERROR(INDEX(WieVeld,MATCH(0,COUNTIF($A$2:A110,WieVeld),0)),\"\")","v":""},""]
[{"$f":"IFERROR(INDEX(WieVeld,MATCH(0,COUNTIF($A$2:A111,WieVeld),0)),\"\")","v":""},""]
[{"$f":"IFERROR(INDEX(WieVeld,MATCH(0,COUNTIF($A$2:A112,WieVeld),0)),\"\")","v":""},""]
[{"$f":"IFERROR(INDEX(WieVeld,MATCH(0,COUNTIF($A$2:A113,WieVeld),0)),\"\")","v":""},""]
[{"$f":"IFERROR(INDEX(WieVeld,MATCH(0,COUNTIF($A$2:A114,WieVeld),0)),\"\")","v":""},""]
[{"$f":"IFERROR(INDEX(WieVeld,MATCH(0,COUNTIF($A$2:A115,WieVeld),0)),\"\")","v":""},""]
[{"$f":"IFERROR(INDEX(WieVeld,MATCH(0,COUNTIF($A$2:A116,WieVeld),0)),\"\")","v":""},""]
[{"$f":"IFERROR(INDEX(WieVeld,MATCH(0,COUNTIF($A$2:A117,WieVeld),0)),\"\")","v":""},""]
[{"$f":"IFERROR(INDEX(WieVeld,MATCH(0,COUNTIF($A$2:A118,WieVeld),0)),\"\")","v":""},""]
[{"$f":"IFERROR(INDEX(WieVeld,MATCH(0,COUNTIF($A$2:A119,WieVeld),0)),\"\")","v":""},""]
[{"$f":"IFERROR(INDEX(WieVeld,MATCH(0,COUNTIF($A$2:A120,WieVeld),0)),\"\")","v":""},""]
[{"$f":"IFERROR(INDEX(WieVeld,MATCH(0,COUNTIF($A$2:A121,WieVeld),0)),\"\")","v":""},""]
[{"$f":"IFERROR(INDEX(WieVeld,MATCH(0,COUNTIF($A$2:A122,WieVeld),0)),\"\")","v":""},""]
[{"$f":"IFERROR(INDEX(WieVeld,MATCH(0,COUNTIF($A$2:A123,WieVeld),0)),\"\")","v":""},""]
[{"$f":"IFERROR(INDEX(WieVeld,MATCH(0,COUNTIF($A$2:A124,WieVeld),0)),\"\")","v":""},""]
[{"$f":"IFERROR(INDEX(WieVeld,MATCH(0,COUNTIF($A$2:A125,WieVeld),0)),\"\")","v":""},""]
[{"$f":"IFERROR(INDEX(WieVeld,MATCH(0,COUNTIF($A$2:A126,WieVeld),0)),\"\")","v":""},""]
[{"$f":"IFERROR(INDEX(WieVeld,MATCH(0,COUNTIF($A$2:A127,WieVeld),0)),\"\")","v":""},""]
[{"$f":"IFERROR(INDEX(WieVeld,MATCH(0,COUNTIF($A$2:A128,WieVeld),0)),\"\")","v":""},""]
[{"$f":"IFERROR(INDEX(WieVeld,MATCH(0,COUNTIF($A$2:A129,WieVeld),0)),\"\")","v":""},""]
[{"$f":"IFERROR(INDEX(WieVeld,MATCH(0,COUNTIF($A$2:A130,WieVeld),0)),\"\")","v":""},""]
[{"$f":"IFERROR(INDEX(WieVeld,MATCH(0,COUNTIF($A$2:A131,WieVeld),0)),\"\")","v":""},{"$f":"IF(A132=\"\",\"\",ROW())","v":""}]